Workbook

Sheet Instructions
F3: Cooling Tower Rebates
F4: Equipment Information Workbook Instructions
F5: =_xlfn.CONCAT("Version ",'Version Tracking'!C4) -> Version 1.1
C6: This worksheet is required for all applications for cooling tower rebates. The worksheet must be completed and uploaded to the Application Portal
C7: located at: | E7: Online Application Portal
C8: Cooling tower technical requirements can be found on the Resources page of the Application Portal. | L8: Resources Page
C10: Instructions
C12: 1. | D12: This worksheet should be used for information for a single chilled water plant or process cooling application - cannot be used where the tower directly cools the process water without a chiller.
C14: 2. | D14: Enter the required project information in the shaded areas only. A description of this information is provided below.
D15: - All other information will be populated automatically.
C16: 3. | D16: Save file with a project name and date using the naming convention: project name_YY_MM_DD.xls
C17: 4. | D17: Upload the this worksheet to the supporting documents section of your online application.
C19: Inputs Tab
C21: Customer and Project Information Section
D22: Provide the requested information
C24: Cooling Tower and Chiller Plant Information Section
C26: Cooling Tower Information
D27: Manufacturer | F27: Open Input | H27: Provide manufacturer's name
D28: Model | F28: Open Input | H28: Provide Model Number
D29: Capacity | F29: Open Input | H29: Provide rated Tons for towers serving chillers Provide gross MBTUH heat rejection capacity for towers serving non-chiller process loads
C31: Chiller Information
D32: Manufacturer | F32: Open Input | H32: Provide manufacturer's name
D33: Model | F33: Open Input | H33: Provide Model Number
D34: Capacity | F34: Open Input | H34: Provide rated tons at AHRI standard conditions for chiller
C36: Tower Operating Schedule
D37: Weeks / Year | F37: Open Input | H37: Number of weeks per year the system typically operates
D38: Hours / Week | F38: Open Input | H38: Number of hours per week the system typically operates
C40: If more than three input rows are needed for Tower or Chiller information please contact the JEA Business Rebates Program at jeabusiness@icf.com or (844) 604-4393.
C42: Proposed Cooling Tower Cycles of Concentration (CoC) Improvements Section
D43: Provide a brief description how the proposed CoC increase will be achieved and maintained. Additional information and detail may be required during the project review and approval process.
C45: Current Tower Conditions
D46: CoC | G46: Open Input | I46: Current Cycles of Concentration for tower water
D47: Sump Conductivity | G47: Open Input | I47: Conductivity of tower sump water in uS/cm
D48: Sump TDS | G48: Open Input | I48: Equivalent total dissolved solids of sump water in PPM
D49: MU Water Conductivity | G49: Open Input | I49: Conductivity of make-up water in uS/cm
D50: MU Water TDS | G50: Open Input | I50: Equivalent total dissolved solids of make-up water in PPM
C51: Target CoC | G51: Open Input | I51: Cycles of Concentration project is intended to meet
C53: Cooling Tower Water Usage Reductions Not Related to CoC Improvement Section
D55: Provide a brief description the proposed cooling tower water usage reductions not related to CoC increase and how the reductions will be achieved and maintained. Additional information and detail may be required during the project review and approval process.
C57: Projected Annual Cooling Tower Water Usage Reductions Not Related to CoC Improvement | G57: Open Input
C59: Baseline Usage and Post Usage Tabs
C60: Provide water meter readings for make-up and blowdown water for minimum 30-day periods before any tower water reduction measures are installed and after all water reduction measures are installed and fully operational on the appropriate tab. Daily meter readings are preferred and no reading interval shall exceed four days. Completely fill the lefthand data collection table before any entry of data in the right hand section. The righthand section header will automatically indicate when to use the righthand section.
D62: Date | F62: Open Input | H62: Input date of meter reading in MM/DD/YYY format
D63: Meter Reading | F63: Open Input | H63: Input meter reading in gallons. Do not calculate gallons difference of readings.
D64: GPD | F64: Calculated | H64: Calculated GPD usage based on date and meter reading values. 'Invalid Date' Indicates associated date is out of chronological order.

Sheet Inputs
F3: Cooling Tower Rebates
F4: Equipment Information
K5: =_xlfn.CONCAT("Version ",'Version Tracking'!C4) -> Version 1.1
B6: Customer and Project Information
C8: Customer Name | J8: Project Name
C9: Customer Contact | J9: Contractor Name
C10: Customer Address | J10: Contractor Contact
C11: Customer Phone | J11: Contactor Email
C12: Customer Email | J12: Total Estimated Project Cost
C14: Input Cells - Blue Only
B15: Cooling Tower and Chiller Plant Information
B17: Cooling Tower Information | J17: Chiller Information
B18: Manufacturer | E18: Model | G18: Capacity (Tons or Gross MBTUH) | J18: Manufacturer | M18: Model | O18: Capacity (Tons)
B23: Tower Operating Schedule | F23: Weeks / Year | J23: Hours / Week
B25: Proposed Cooling Tower Cycles of Concentration (CoC) Improvements
B26: Provide a brief description how the proposed CoC increase will be achieved and maintained. Additional information and detail may be required during the project review and approval process.
B29: Current Tower Conditions | D29: CoC | E29: Sump Conductivity | G29: Sump TDS | I29: MU Water Conductivity | K29: MU Water TDS | N29: Target CoC
B32: Cooling Tower Water Usage Reductions Not Related to CoC Improvement
B33: Provide a brief description the proposed cooling tower water usage reductions not related to CoC increase and how the reductions will be achieved and maintained. Additional information and detail may be required during the project review and approval process.
B35: Projected Annual Cooling Tower Water Usage Reductions Not Related to CoC Improvement
B36: Baseline Cooling Tower Water Usage
B37: Baseline cooling tower water usage must be based on a minimum 30-day monitoring of make-up and blowdown water quantities. If water meters will be installed as part of the water efficiency project no additional measures shall be installed until after the water meters have been installed and monitored for a minimum of 30 days and the data reported to JEA for review and approval. Enter the meter readings on the Baseline Usage tab.
B39: Post Installation Cooling Tower Water Usage
B40: Post installation cooling tower water usage must be based on a minimum 30-day monitoring of make-up and blowdown water usage after all water efficiency measures are installed and operational. Enter the post installation meter readings on the Post Usage tab and submit the completer Worksheet to JEA for review and approval.
B41: Projected Annual Water Usage Reductions and Estimated Rebate
C43: Projected Annual Water Savings from CoC Improvement (Million Gallons) | N43: =IFERROR(Calculations!E24/1000000,0) -> 0
C44: Projected Annual Water Savings from Non-CoC Reductions (Million Gallons) | N44: =Inputs!O35/1000000 -> 0
C45: Projected Total Annual Water Savings Reductions (Million Gallons) | N45: =N43+N44 -> 0
C47: Estimated Project Rebate Based On The Projected Savings Shown Above:
H48: =IFERROR(Calculations!E29,0) -> 0
C49: =IFERROR(IF(Calculations!E29<Calculations!E28,_xlfn.CONCAT("Rebate Has Been Capped at the $30,000 Project Rebate Cap"),""),"") -> 
C50: This estimated rebate amount is subject to adjustment based on actual post installation water usage reductions determined using baseline and post installation make-up water usage. The rebate is also subject to a $30,000 per project rebate cap and maximum $30,000 per year water measures rebate per tax ID.

Sheet Baseline Usage
F3: Cooling Tower Rebates
F4: Baseline Water Usage Data
C7: Input Cells - Blue Only | H7: Provide Meter Readings for a 30-day minimum period. Upload the this worksheet to the supporting documents section of your online application when baseline usage information is complete.
B10: Completely Fill This Section First | J10: =IF(COUNT(B14:B35)<22,"Complete Lefthand Section First","This Section Can Be Used") -> Complete Lefthand Section First
B11: Date (In chronolgical order) | D11: Make-Up water | G11: Blow-Down Water | J11: Date (In chronolgical order) | L11: Make-Up water | O11: Blow-Down Water
D12: Meter Reading (Gallons) | F12: GPD | G12: Meter Reading (Gallons) | I12: GPD | L12: Meter Reading (Gallons) | N12: GPD | O12: Meter Reading (Gallons) | Q12: GPD
N13: =IFERROR(IF(J13="","",IF(J13-B34<0,"Invalid Date",ROUND((D34-L13)/(B34-J13),0))),"") ->  | Q13: =IFERROR(IF(J13="","",IF(J13-B34<0,"Invalid Date",ROUND((O13-G34)/(J13-B34),0))),"") -> 
F14: =IFERROR(IF(B14="","",IF(B14-B13<0,"Invalid Date",ROUND((D14-D13)/(B14-B13),0))),"") ->  | I14: =IFERROR(IF(B14="","",IF(B14-B13<0,"Invalid Date",ROUND((G14-G13)/(B14-B13),0))),"") ->  | N14: =IFERROR(IF(J14="","",IF(J14-B35<0,"Invalid Date",ROUND((D35-L14)/(B35-J14),0))),"") ->  | Q14: =IFERROR(IF(J14="","",IF(J14-B35<0,"Invalid Date",ROUND((O14-G35)/(J14-B35),0))),"") -> 
F15: =IFERROR(IF(B15="","",IF(B15-B14<0,"Invalid Date",ROUND((D15-D14)/(B15-B14),0))),"") ->  | I15: =IFERROR(IF(B15="","",IF(B15-B14<0,"Invalid Date",ROUND((G15-G14)/(B15-B14),0))),"") -> 
B36: =LOOKUP(2,1/(B13:B34<>""),B13:B34) ->  | D36: =LOOKUP(2,1/(D13:D34<>""),D13:D34) ->  | G36: =LOOKUP(2,1/(G13:G34<>""),G13:G34) ->  | J36: =LOOKUP(2,1/(J13:J34<>""),J13:J34) ->  | L36: =LOOKUP(2,1/(L13:L34<>""),L13:L34) ->  | O36: =LOOKUP(2,1/(O13:O34<>""),O13:O34) -> 

Sheet Post Usage
F3: Cooling Tower Rebates
F4: Post Installation Water Usage Data
C7: Input Cells - Blue Only | H7: Provide Meter Readings for a 30-day minimum period. Upload the this worksheet to the supporting documents section of your online application when post usage information is complete.
B10: Completely Fill This Section First | J10: =IF(COUNT(B14:B35)<22,"Complete Lefthand Section First","This Section Can Be Used") -> Complete Lefthand Section First
B11: Date (In chronological order) | D11: Make-Up water | G11: Blow-Down Water | J11: Date (In chronological order) | L11: Make-Up water | O11: Blow-Down Water
D12: Meter Reading (Gallons) | F12: GPD | G12: Meter Reading (Gallons) | I12: GPD | L12: Meter Reading (Gallons) | N12: GPD | O12: Meter Reading (Gallons) | Q12: GPD
N13: =IFERROR(IF(J13="","",IF(J13-B34<0,"Invalid Date",ROUND((L13-D34)/(J13-B34),0))),"") ->  | Q13: =IFERROR(IF(J13="","",IF(J13-J12<0,"Invalid Date",ROUND((O13-G34)/(J13-B34),0))),"") -> 
F14: =IFERROR(IF(B14="","",IF(B14-B13<0,"Invalid Date",ROUND((D14-D13)/(B14-B13),0))),"") ->  | I14: =IFERROR(IF(B14="","",IF(B14-B13<0,"Invalid Date",ROUND((G14-G13)/(B14-B13),0))),"") ->  | N14: =IFERROR(IF(J14="","",IF(J14-B35<0,"Invalid Date",ROUND((L14-D35)/(J14-B35),0))),"") ->  | Q14: =IFERROR(IF(J14="","",IF(J14-J13<0,"Invalid Date",ROUND((O14-G35)/(J14-B35),0))),"") -> 
F15: =IFERROR(IF(B15="","",IF(B15-B14<0,"Invalid Date",ROUND((D15-D14)/(B15-B14),0))),"") ->  | I15: =IFERROR(IF(B15="","",IF(B15-B14<0,"Invalid Date",ROUND((G15-G14)/(B15-B14),0))),"") -> 
B36: =LOOKUP(2,1/(B13:B34<>""),B13:B34) ->  | D36: =LOOKUP(2,1/(D13:D34<>""),D13:D34) ->  | G36: =LOOKUP(2,1/(G13:G34<>""),G13:G34) ->  | J36: =LOOKUP(2,1/(J13:J34<>""),J13:J34) ->  | L36: =LOOKUP(2,1/(L13:L34<>""),L13:L34) ->  | O36: =LOOKUP(2,1/(O13:O34<>""),O13:O34) -> 

Sheet Project Review (hidden)
A2: During Project Review Select Measures being Implemented | H2: Cooling Tower Related Measure Types
B3: # | C3: Measure Type | E3: Description if "Other" | H3: CoC Related | I3: Automated Blow Down Control
A4: CoC Related | B4: 1 | I4: Automated Chemical Feed
B5: 2 | I5: Side Stream Filtration
B6: 3 | I6: Water Softening
B7: 4 | I7: Other
B8: 5 | H8: Non-CoC Related | I8: Sunlight Covers
A9: Non CoC Related | B9: 1 | I9: Drift Eliminators
B10: 2 | I10: Use Recycled Water
B11: 3 | I11: Other
B12: 4
B13: 5
A15: Project Status | D15: Open
A16: Final CoC
A17: Rebate Cap | D17: 30000
A19: Check for Ice Machine and Green Restaurant rebates in current Program Year. Cooling Tower Project Cap may need to be modified in order to not exceed the $30,000 annual water rebate cap.

Sheet AEG Import (hidden)
A1: Measure # | B1: Import? | C1: CAPACITY | D1: building_type_sel | E1: Elec_Util_cust_Incentive | F1: Rebate_Per_Unit | G1: GALLONS_WATER | H1: WATER_CONSUMPTION | I1: BASECASE_QUANTITY | J1: HRS_PER_DAY | K1: WATER_FACTOR | L1: BASECASE_OTHERR | M1: SUB_COMPONENT_1 | N1: SUB_COMPONENT_2 | O1: SUB_COMPONENT_3 | P1: SUB_COMPONENT_4 | Q1: SUB_COMPONENT_5 | R1: PHASE_SEL | S1: PROJECT_COST | T1: quantity
A2: CoC | B2: =IF(G2>0,"Yes","No") -> No | C2: =Calculations!D12 -> 0 | E2: =F2 ->  | F2: =IF(Project_Status="Final",Calculations!F30,Calculations!E30) ->  | G2: =IF(Project_Status="Final",Calculations!F23,Calculations!E23) -> 0 | H2: =Calculations!F8 ->  | I2: =Calculations!F7 ->  | J2: =Calculations!D13*Calculations!D14 -> 0 | K2: =IF(Project_Status="final",Calculations!D9,Calculations!D8) -> 0 | L2: =Calculations!D7 -> 0 | M2: =IF('Project Review'!C4="Other",'Project Review'!E4,'Project Review'!C4) -> 0 | N2: =IF('Project Review'!C5="Other",'Project Review'!E5,'Project Review'!C5) -> 0 | O2: =IF('Project Review'!C6="Other",'Project Review'!E6,'Project Review'!C6) -> 0 | P2: =IF('Project Review'!C7="Other",'Project Review'!E7,'Project Review'!C7) -> 0 | Q2: =IF('Project Review'!C8="Other",'Project Review'!E8,'Project Review'!C8) -> 0 | R2: =Project_Status -> Open | S2: =Inputs!M12 -> 0 | T2: 1
A3: Non_CoC | B3: =IF(G3>0,"Yes","No") -> No | C3: =Calculations!D12 -> 0 | E3: =F3 ->  | F3: =IF(Project_Status="Final",Calculations!F31,Calculations!E31) ->  | G3: =IF(Project_Status="Final",Calculations!F25,Calculations!E25) -> 0 | H3: =(Calculations!K11*365.25)-(Calculations!F8*365.25)-Inputs!O35 ->  | I3: =Calculations!K11-Calculations!F7 ->  | M3: =IF('Project Review'!C9="Other",'Project Review'!E9,'Project Review'!C9) -> 0 | N3: =IF('Project Review'!C10="Other",'Project Review'!E10,'Project Review'!C10) -> 0 | O3: =IF('Project Review'!C11="Other",'Project Review'!E11,'Project Review'!C11) -> 0 | P3: =IF('Project Review'!C12="Other",'Project Review'!E12,'Project Review'!C12) -> 0 | Q3: =IF('Project Review'!C13="Other",'Project Review'!E13,'Project Review'!C13) -> 0 | R3: =Project_Status -> Open | S3: =Inputs!M12 -> 0 | T3: 1

Sheet Calculations (hidden)
C2: Post Review Adjusted Values | J2: Rebate/1000g | K2: 8
C5: CoC Related Calculations | J5: Baseline Water Usage
C6: CoC Type | D6: CoC | E6: Full GPD | F6: Project GPD | K6: Date L Column | L6: MU L Column | M6: BD L Column | N6: Date R Column | O6: MU R Column | P6: BD R Column
C7: Baseline | D7: =Inputs!D30 -> 0 | E7: =VLOOKUP($D$12,CoC_data,HLOOKUP($D7,CoC_Conv,2,FALSE),FALSE) ->  | F7: =ROUND(E7*(D$13/52)*(D$14/168),0) ->  | J7: Initial Entry | K7: ='Baseline Usage'!B13 -> 00:00:00 | L7: ='Baseline Usage'!D13 -> 0 | M7: ='Baseline Usage'!G13 -> 0 | N7: ='Baseline Usage'!J13 -> 00:00:00 | O7: ='Baseline Usage'!L13 -> 0 | P7: ='Baseline Usage'!O13 -> 0
C8: Proposed | D8: =Inputs!N30 -> 0 | E8: =VLOOKUP($D$12,CoC_data,HLOOKUP($D8,CoC_Conv,2,FALSE),FALSE) ->  | F8: =ROUND(E8*(D$13/52)*(D$14/168),0) ->  | J8: Last Entry | K8: =IFERROR('Baseline Usage'!B36,0) -> 00:00:00 | L8: =IFERROR('Baseline Usage'!D36,0) -> 0 | M8: =IFERROR('Baseline Usage'!G36,0) -> 0 | N8: =IFERROR('Baseline Usage'!J36,0) -> 00:00:00 | O8: =IFERROR('Baseline Usage'!L36,0) -> 0 | P8: =IFERROR('Baseline Usage'!O36,0) -> 0
C9: Actual | D9: ='Project Review'!D16 -> 0 | E9: =IFERROR(VLOOKUP($D$12,CoC_data,HLOOKUP($D9,CoC_Conv,2,FALSE),FALSE),0) -> 0 | F9: =ROUND(E9*(D$13/52)*(D$14/168),0) -> 0 | J9: Delta | K9: =K8-K7 -> 0 | L9: =L8-L7 -> 0 | M9: 0 | N9: 0 | O9: 0 | P9: 0
C10: GPD Reduction | E10: =IFERROR(E7-E9,0) -> 0 | F10: =F7-IF(D9=0,F8,F9) -> 
C11: GPY Reduction | E11: =E10*365.25 -> 0 | F11: =F10*365.25 ->  | J11: Base MU GPD | K11: =(L9+O9)/(K9+N9) ->  | O11: GPD | P11: GPY
C12: Tons | D12: =SUM(Inputs!O19:P21) -> 0 | J12: Base BD GPD | K12: =(M9+P9)/(K9+N9) ->  | M12: Water Usage not related to CoC | O12: =K11-K12 ->  | P12: =O12*365.25 -> 
C13: Weeks | D13: =Inputs!H23 -> 0
C14: Hours | D14: =Inputs!L23 -> 0
J15: Post Installation Water Usage
E16: Projected | F16: Final | K16: Date L Column | L16: MU L Column | M16: BD L Column | N16: Date R Column | O16: MU R Column | P16: BD R Column
C17: CoC Rebate | E17: =ROUND((F7-F8)*365.25/1000*Incentive_1000g,0) ->  | F17: =IF(D9=0,0,ROUND((F7-F9)*365.25/1000*Incentive_1000g,0)) -> 0 | J17: Initial Entry | K17: ='Post Usage'!B13 -> 00:00:00 | L17: ='Post Usage'!D13 -> 0 | M17: ='Post Usage'!G13 -> 0 | N17: ='Post Usage'!J13 -> 00:00:00 | O17: ='Post Usage'!L13 -> 0 | P17: ='Post Usage'!O13 -> 0
J18: Last Entry | K18: =IFERROR('Post Usage'!B36,0) -> 00:00:00 | L18: =IFERROR('Post Usage'!D36,0) -> 0 | M18: =IFERROR('Post Usage'!G36,0) -> 0 | N18: =IFERROR('Post Usage'!J36,0) -> 00:00:00 | O18: =IFERROR('Post Usage'!L36,0) -> 0 | P18: =IFERROR('Post Usage'!O36,0) -> 0
J19: Delta | K19: =K18-K17 -> 0 | L19: =L18-L17 -> 0 | M19: =M18-M17 -> 0 | N19: =N18-N17 -> 0 | O19: =O18-O17 -> 0 | P19: =P18-P17 -> 0
C21: Rebate Calculations | J21: Post MU GPD | K21: =(L19+O19)/(K19+N19) ->  | O21: GPD | P21: GPY
E22: Projected | F22: Final | J22: Post BD GPD | K22: =(M19+P19)/(K19+N19) ->  | M22: Water Usage not related to CoC | O22: =K21-K22 ->  | P22: =O22*365.25 -> 
C23: Total MGY Savings | E23: =IFERROR(ROUND(((F7-F8)*365.25)+Inputs!O35,0),0) -> 0 | F23: =IFERROR(ROUND(K30*365.25,0),0) -> 0
C24: MGY from CoC | E24: =ROUND((F7-F8)*365.25,0) ->  | F24: =IF(D9=0,0,ROUND((F7-F9)*365.25,0)) -> 0
C25: MGY from Non-CoC | E25: =Inputs!O35 -> 0 | F25: =F23-F24 -> 0 | J25: Project Water Savings Based on Pre and Post meter readings
C26: CoC Rebate | E26: =E24/1000*Incentive_1000g ->  | F26: =F24/1000*Incentive_1000g -> 0 | J26: Make-up | M26: Blowdown
C27: Non-CoC Rebate | E27: =E25/1000*Incentive_1000g -> 0 | F27: =F25/1000*Incentive_1000g -> 0 | J27: Base MU GPD | K27: =K11 ->  | M27: Base BD GPD | N27: =K12 -> 
C28: Initial Rebate | E28: =E26+E27 ->  | F28: =ROUND(F23/1000*Incentive_1000g,2) -> 0 | J28: Post MU GPD | K28: =K21 ->  | M28: Post BD GPD | N28: =K22 -> 
C29: Capped Rebate | E29: =IF(E28>Incentive_Cap,Incentive_Cap,E28) ->  | F29: =IF(F28>Incentive_Cap,Incentive_Cap,F28) -> 0 | J29: Delta MU GPD | K29: =K27-K28 ->  | M29: Delta BD GPD | N29: =N27-N28 -> 
C30: Capped Rebate CoC | E30: =E$29/E$28*E26 ->  | F30: =IFERROR(F$29/F$28*F26,0) -> 0 | J30: Annual MU GPY Reduction | K30: =K29*365.25 ->  | M30: Annual BD GPY Reduction | N30: =N29*365.25 -> 
C31: Capped Rebate N-CoC | E31: =E$29/E$28*E27 ->  | F31: =IFERROR(F$29/F$28*F27,0) -> 0

Sheet CoC Data (hidden)
A1: Excerpt from EERE/FEMP "Estimating Methods for Determining End-Use Water Consumption" https://www.energy.gov/eere/femp/estimating-methods-determining-end-use-water-consumption
M2: 1.305 | N2: avg delta of daily use per ton per 0.5 CoC for original FEMP data
B3: DAILY COOLING TOWER WATER USE AT FULL LOAD (GALLONS PER DAY)
B4: Chiller Nameplate Tonnage | C4: CYCLES OF CONCENTRATION | U4: Move from 3 to 6 CoC 24 Hr Savings | V4: Chiller Daily Operating Hours
C5: 3 | D5: 3.5 | E5: 4 | F5: 4.5 | G5: 5 | H5: 5.5 | I5: 6 | J5: 6.5 | K5: 7 | L5: 7.5 | M5: 8 | N5: 8.5 | O5: 9 | P5: 9.5 | Q5: 10 | V5: 10 | W5: 12 | X5: 14 | Y5: 16 | Z5: 18 | AA5: 24
C6: 2 | D6: 3 | E6: 4 | F6: 5 | G6: 6 | H6: 7 | I6: 8 | J6: 9 | K6: 10 | L6: 11 | M6: 12 | N6: 13 | O6: 14 | P6: 15 | Q6: 16
B7: 100 | C7: 5480 | D7: =AVERAGE(C7,E7) -> 5205 | E7: 4930 | F7: =AVERAGE(E7,G7) -> 4795 | G7: 4660 | H7: =AVERAGE(G7,I7) -> 4520 | I7: 4380 | J7: =AVERAGE(I7,K7) -> 4380 | K7: 4380 | L7: =AVERAGE(K7,M7) -> 4245 | M7: 4110 | N7: =ROUND(M7-($B7*$M$2),0) -> 3980 | O7: =ROUND(N7-($B7*$M$2),0) -> 3850 | P7: 3720 | Q7: 3590 | U7: =C7-I7 -> 1100 | V7: =V$5/24*$U7 -> 458.3333333 | W7: =W$5/24*$U7 -> 550 | X7: 641.6666667 | Y7: 733.3333333 | Z7: 825 | AA7: 1100
B8: 125 | C8: =C$7+((C$11-C$7)*(($B8-$B$7)/($B$11-$B$7))) -> 6850 | D8: =AVERAGE(C8,E8) -> 6506.25 | E8: =E$7+((E$11-E$7)*(($B8-$B$7)/($B$11-$B$7))) -> 6162.5 | F8: =AVERAGE(E8,G8) -> 5993.75 | G8: 5825 | H8: =AVERAGE(G8,I8) -> 5651.25 | I8: 5477.5 | J8: =AVERAGE(I8,K8) -> 5442.5 | K8: 5407.5 | L8: =AVERAGE(K8,M8) -> 5306.25 | M8: 5205 | N8: =ROUND(M8-($B8*$M$2),0) -> 5042 | O8: 4879 | P8: 4716 | Q8: 4553 | U8: =C8-I8 -> 1372.5 | V8: =V$5/24*$U8 -> 571.875 | W8: 686.25 | X8: 800.625 | Y8: 915 | Z8: 1029.375 | AA8: 1372.5
B9: 150 | C9: =C$7+((C$11-C$7)*(($B9-$B$7)/($B$11-$B$7))) -> 8220 | D9: 7807.5 | E9: 7395 | F9: 7192.5 | G9: 6990 | H9: 6782.5 | I9: 6575 | J9: 6505 | K9: 6435 | L9: 6367.5 | M9: 6300 | N9: 6104 | O9: 5908 | P9: 5712 | Q9: 5516 | U9: 1645 | V9: 685.4166667 | W9: 822.5 | X9: 959.5833333 | Y9: 1096.666667 | Z9: 1233.75 | AA9: 1645
B10: 175 | C10: 9590 | D10: 9108.75 | E10: 8627.5 | F10: 8391.25 | G10: 8155 | H10: 7913.75 | I10: 7672.5 | J10: 7567.5 | K10: 7462.5 | L10: 7428.75 | M10: 7395 | N10: 7167 | O10: 6939 | P10: 6711 | Q10: 6483 | U10: 1917.5 | V10: 798.9583333 | W10: 958.75 | X10: 1118.541667 | Y10: 1278.333333 | Z10: 1438.125 | AA10: 1917.5
B11: 200 | C11: 10960 | D11: 10410 | E11: 9860 | F11: 9590 | G11: 9320 | H11: 9045 | I11: 8770 | J11: 8630 | K11: 8490 | L11: 8490 | M11: 8490 | N11: 8229 | O11: 7968 | P11: 7707 | Q11: 7446 | U11: 2190 | V11: 912.5 | W11: 1095 | X11: 1277.5 | Y11: 1460 | Z11: 1642.5 | AA11: 2190
B12: 225 | C12: =C$11+((C$19-C$11)*(($B12-$B$11)/($B$19-$B$11))) -> 12330 | D12: 11711.875 | E12: =E$11+((E$19-E$11)*(($B12-$B$11)/($B$19-$B$11))) -> 11093.75 | F12: 10771.875 | G12: 10450 | H12: 10157.5 | I12: 9865 | J12: 9725.625 | K12: 9586.25 | L12: 9551.875 | M12: 9517.5 | N12: 9224 | O12: 8930 | P12: 8636 | Q12: 8342 | U12: 2465 | V12: 1027.083333 | W12: 1232.5 | X12: 1437.916667 | Y12: 1643.333333 | Z12: 1848.75 | AA12: 2465
B13: 250 | C13: =C$11+((C$19-C$11)*(($B13-$B$11)/($B$19-$B$11))) -> 13700 | D13: 13013.75 | E13: 12327.5 | F13: 11953.75 | G13: 11580 | H13: 11270 | I13: 10960 | J13: 10821.25 | K13: 10682.5 | L13: 10613.75 | M13: 10545 | N13: 10219 | O13: 9893 | P13: 9567 | Q13: 9241 | U13: 2740 | V13: 1141.666667 | W13: 1370 | X13: 1598.333333 | Y13: 1826.666667 | Z13: 2055 | AA13: 2740
B14: 275 | C14: 15070 | D14: 14315.625 | E14: 13561.25 | F14: 13135.625 | G14: 12710 | H14: 12382.5 | I14: 12055 | J14: 11916.875 | K14: 11778.75 | L14: 11675.625 | M14: 11572.5 | N14: 11214 | O14: 10855 | P14: 10496 | Q14: 10137 | U14: 3015 | V14: 1256.25 | W14: 1507.5 | X14: 1758.75 | Y14: 2010 | Z14: 2261.25 | AA14: 3015
B15: 300 | C15: 16440 | D15: 15617.5 | E15: 14795 | F15: 14317.5 | G15: 13840 | H15: 13495 | I15: 13150 | J15: 13012.5 | K15: 12875 | L15: 12737.5 | M15: 12600 | N15: 12209 | O15: 11818 | P15: 11427 | Q15: 11036 | U15: 3290 | V15: 1370.833333 | W15: 1645 | X15: 1919.166667 | Y15: 2193.333333 | Z15: 2467.5 | AA15: 3290
B16: 325 | C16: 17810 | D16: 16919.375 | E16: 16028.75 | F16: 15499.375 | G16: 14970 | H16: 14607.5 | I16: 14245 | J16: 14108.125 | K16: 13971.25 | L16: 13799.375 | M16: 13627.5 | N16: 13203 | O16: 12779 | P16: 12355 | Q16: 11931 | U16: 3565 | V16: 1485.416667 | W16: 1782.5 | X16: 2079.583333 | Y16: 2376.666667 | Z16: 2673.75 | AA16: 3565
B17: 350 | C17: 19180 | D17: 18221.25 | E17: 17262.5 | F17: 16681.25 | G17: 16100 | H17: 15720 | I17: 15340 | J17: 15203.75 | K17: 15067.5 | L17: 14861.25 | M17: 14655 | N17: 14198 | O17: 13741 | P17: 13284 | Q17: 12827 | U17: 3840 | V17: 1600 | W17: 1920 | X17: 2240 | Y17: 2560 | Z17: 2880 | AA17: 3840
B18: 375 | C18: 20550 | D18: 19523.125 | E18: 18496.25 | F18: 17863.125 | G18: 17230 | H18: 16832.5 | I18: 16435 | J18: 16299.375 | K18: 16163.75 | L18: 15923.125 | M18: 15682.5 | N18: 15193 | O18: 14704 | P18: 14215 | Q18: 13726 | U18: 4115 | V18: 1714.583333 | W18: 2057.5 | X18: 2400.416667 | Y18: 2743.333333 | Z18: 3086.25 | AA18: 4115
B19: 400 | C19: 21920 | D19: 20825 | E19: 19730 | F19: 19045 | G19: 18360 | H19: 17945 | I19: 17530 | J19: 17395 | K19: 17260 | L19: 16985 | M19: 16710 | N19: 16188 | O19: 15666 | P19: 15144 | Q19: 14622 | U19: 4390 | V19: 1829.166667 | W19: 2195 | X19: 2560.833333 | Y19: 2926.666667 | Z19: 3292.5 | AA19: 4390
B20: 450 | C20: =AVERAGE(C19,C21) -> 24660 | D20: 23357.5 | E20: =AVERAGE(E19,E21) -> 22055 | F20: 21370 | G20: 20685 | H20: 20205 | I20: 19725 | J20: 19520 | K20: 19315 | L20: 19110 | M20: 18905 | N20: 18318 | O20: 17731 | P20: 17144 | Q20: 16557 | U20: 4935 | V20: 2056.25 | W20: 2467.5 | X20: 2878.75 | Y20: 3290 | Z20: 3701.25 | AA20: 4935
B21: 500 | C21: 27400 | D21: 25890 | E21: 24380 | F21: 23695 | G21: 23010 | H21: 22465 | I21: 21920 | J21: 21645 | K21: 21370 | L21: 21235 | M21: 21100 | N21: 20448 | O21: 19796 | P21: 19144 | Q21: 18492 | U21: 5480 | V21: 2283.333333 | W21: 2740 | X21: 3196.666667 | Y21: 3653.333333 | Z21: 4110 | AA21: 5480
B22: 550 | C22: =AVERAGE(C21,C23) -> 30275 | D22: 28562.5 | E22: =AVERAGE(E21,E23) -> 26850 | F22: 26027.5 | G22: 25205 | H22: 24727.5 | I22: 24250 | J22: 23905 | K22: 23560 | L22: 23357.5 | M22: 23155 | N22: 22437 | O22: 21719 | P22: 21001 | Q22: 20283 | U22: 6025 | V22: 2510.416667 | W22: 3012.5 | X22: 3514.583333 | Y22: 4016.666667 | Z22: 4518.75 | AA22: 6025
B23: 600 | C23: 33150 | D23: 31235 | E23: 29320 | F23: 28360 | G23: 27400 | H23: 26990 | I23: 26580 | J23: 26165 | K23: 25750 | L23: 25480 | M23: 25210 | N23: 24427 | O23: 23644 | P23: 22861 | Q23: 22078 | U23: 6570 | V23: 2737.5 | W23: 3285 | X23: 3832.5 | Y23: 4380 | Z23: 4927.5 | AA23: 6570
B24: 650 | C24: =C$23+((C$27-C$23)*(($B24-$B$23)/($B$27-$B$23))) -> 35890 | D24: 33837.5 | E24: =E$23+((E$27-E$23)*(($B24-$B$23)/($B$27-$B$23))) -> 31785 | F24: 30756.25 | G24: 29727.5 | H24: 29248.75 | I24: 28770 | J24: 28322.5 | K24: 27875 | L24: 27603.75 | M24: 27332.5 | N24: 26484 | O24: 25636 | P24: 24788 | Q24: 23940 | U24: 7120 | V24: 2966.666667 | W24: 3560 | X24: 4153.333333 | Y24: 4746.666667 | Z24: 5340 | AA24: 7120
B25: 700 | C25: =C$23+((C$27-C$23)*(($B25-$B$23)/($B$27-$B$23))) -> 38630 | D25: 36440 | E25: 34250 | F25: 33152.5 | G25: 32055 | H25: 31507.5 | I25: 30960 | J25: 30480 | K25: 30000 | L25: 29727.5 | M25: 29455 | N25: 28542 | O25: 27629 | P25: 26716 | Q25: 25803 | U25: 7670 | V25: 3195.833333 | W25: 3835 | X25: 4474.166667 | Y25: 5113.333333 | Z25: 5752.5 | AA25: 7670
B26: 750 | C26: 41370 | D26: 39042.5 | E26: 36715 | F26: 35548.75 | G26: 34382.5 | H26: 33766.25 | I26: 33150 | J26: 32637.5 | K26: 32125 | L26: 31851.25 | M26: 31577.5 | N26: 30599 | O26: 29620 | P26: 28641 | Q26: 27662 | U26: 8220 | V26: 3425 | W26: 4110 | X26: 4795 | Y26: 5480 | Z26: 6165 | AA26: 8220
B27: 800 | C27: 44110 | D27: 41645 | E27: 39180 | F27: 37945 | G27: 36710 | H27: 36025 | I27: 35340 | J27: 34795 | K27: 34250 | L27: 33975 | M27: 33700 | N27: 32656 | O27: 31612 | P27: 30568 | Q27: 29524 | U27: 8770 | V27: 3654.166667 | W27: 4385 | X27: 5115.833333 | Y27: 5846.666667 | Z27: 6577.5 | AA27: 8770
B28: 850 | C28: =C$27+((C$31-C$27)*(($B28-$B$27)/($B$31-$B$27))) -> 46850 | D28: 44247.5 | E28: =E$27+((E$31-E$27)*(($B28-$B$27)/($B$31-$B$27))) -> 41645 | F28: 40342.5 | G28: 39040 | H28: 38286.25 | I28: 37532.5 | J28: 36952.5 | K28: 36372.5 | L28: 36063.75 | M28: 35755 | N28: 34646 | O28: 33537 | P28: 32428 | Q28: 31319 | U28: 9317.5 | V28: 3882.291667 | W28: 4658.75 | X28: 5435.208333 | Y28: 6211.666667 | Z28: 6988.125 | AA28: 9317.5
B29: 900 | C29: =C$27+((C$31-C$27)*(($B29-$B$27)/($B$31-$B$27))) -> 49590 | D29: 46850 | E29: 44110 | F29: 42740 | G29: 41370 | H29: 40547.5 | I29: 39725 | J29: 39110 | K29: 38495 | L29: 38152.5 | M29: 37810 | N29: 36636 | O29: 35462 | P29: 34288 | Q29: 33114 | U29: 9865 | V29: 4110.416667 | W29: 4932.5 | X29: 5754.583333 | Y29: 6576.666667 | Z29: 7398.75 | AA29: 9865
B30: 950 | C30: 52330 | D30: 49452.5 | E30: 46575 | F30: 45137.5 | G30: 43700 | H30: 42808.75 | I30: 41917.5 | J30: 41267.5 | K30: 40617.5 | L30: 40241.25 | M30: 39865 | N30: 38625 | O30: 37385 | P30: 36145 | Q30: 34905 | U30: 10412.5 | V30: 4338.541667 | W30: 5206.25 | X30: 6073.958333 | Y30: 6941.666667 | Z30: 7809.375 | AA30: 10412.5
B31: 1000 | C31: 55070 | D31: 52055 | E31: 49040 | F31: 47535 | G31: 46030 | H31: 45070 | I31: 44110 | J31: 43425 | K31: 42740 | L31: 42330 | M31: 41920 | N31: 40615 | O31: 39310 | P31: 38005 | Q31: 36700 | U31: 10960 | V31: 4566.666667 | W31: 5480 | X31: 6393.333333 | Y31: 7306.666667 | Z31: 8220 | AA31: 10960
B32: 1500 | C32: 82740 | D32: 78080 | E32: 73420 | F32: 71095 | G32: 68770 | H32: 67400 | I32: 66030 | J32: 65205 | K32: 64380 | L32: 63695 | M32: 63010 | N32: 61053 | O32: 59096 | P32: 57139 | Q32: 55182 | U32: 16710 | V32: 6962.5 | W32: 8355 | X32: 9747.5 | Y32: 11140 | Z32: 12532.5 | AA32: 16710
B33: 2000 | C33: 110140 | D33: 103975 | E33: 97810 | F33: 94795 | G33: 91780 | H33: 90000 | I33: 88220 | J33: 86850 | K33: 85480 | L33: 84660 | M33: 83840 | N33: 81230 | O33: 78620 | P33: 76010 | Q33: 73400 | U33: 21920 | V33: 9133.333333 | W33: 10960 | X33: 12786.66667 | Y33: 14613.33333 | Z33: 16440 | AA33: 21920
B34: 2500 | C34: 137810 | D34: 130140 | E34: 122470 | F34: 118630 | G34: 114790 | H34: 112465 | I34: 110140 | J34: 108630 | K34: 107120 | L34: 106025 | M34: 104930 | N34: 101668 | O34: 98406 | P34: 95144 | Q34: 91882 | U34: 27670 | V34: 11529.16667 | W34: 13835 | X34: 16140.83333 | Y34: 18446.66667 | Z34: 20752.5 | AA34: 27670
B35: 3000 | C35: 165210 | D35: 156030 | E35: 146850 | F35: 142330 | G35: 137810 | H35: 135070 | I35: 132330 | J35: 130410 | K35: 128490 | L35: 127260 | M35: 126030 | N35: 122115 | O35: 118200 | P35: 114285 | Q35: 110370 | U35: 32880 | V35: 13700 | W35: 16440 | X35: 19180 | Y35: 21920 | Z35: 24660 | AA35: 32880
B36: 3500 | C36: 192880 | D36: 182195 | E36: 171510 | F36: 166030 | G36: 160550 | H36: 157400 | I36: 154250 | J36: 152055 | K36: 149860 | L36: 148355 | M36: 146850 | N36: 142283 | O36: 137716 | P36: 133149 | Q36: 128582 | U36: 38630 | V36: 16095.83333 | W36: 19315 | X36: 22534.16667 | Y36: 25753.33333 | Z36: 28972.5 | AA36: 38630
B37: 4000 | C37: 220270 | D37: 208080 | E37: 195890 | F37: 189725 | G37: 183560 | H37: 179860 | I37: 176160 | J37: 173835 | K37: 171510 | L37: 169730 | M37: 167950 | N37: 162730 | O37: 157510 | P37: 152290 | Q37: 147070 | U37: 44110 | V37: 18379.16667 | W37: 22055 | X37: 25730.83333 | Y37: 29406.66667 | Z37: 33082.5 | AA37: 44110
B38: 5000 | C38: 275340 | D38: 260410 | E38: 245480 | F38: 237535 | G38: 229590 | H38: 224930 | I38: 220270 | J38: 217260 | K38: 214250 | L38: 212055 | M38: 209860 | N38: 203335 | O38: 196810 | P38: 190285 | Q38: 183760 | U38: 55070 | V38: 22945.83333 | W38: 27535 | X38: 32124.16667 | Y38: 36713.33333 | Z38: 41302.5 | AA38: 55070
C39: Interpolated and Extrapolated Data

Sheet Version Tracking (hidden)
C2: =LOOKUP(2,1/(C1:C50001<>""),C1:C50001) -> Edits based on JEA feedback (formatting, wordsmithing)
B4: Current: | C4: =LOOKUP(2,1/(B1:B50001<>""),B1:B50001) -> 1.1
B5: Version | C5: Notes | D5: Date | E5: Updated By
B6: 1 | C6: Initial Creation | D6: 2022-03-17 | E6: CGO
B7: 1.1 | C7: Edits based on JEA feedback (formatting, wordsmithing) | D7: 2022-04-14 | E7: RM
